bitfinex-derivatives/quotes_ETHF0:USTF0_20251107
["timestamp","ask_amount","ask_price","bid_price","bid_amount"]
[1762496319744,0.71719,3367.1,3367.0,0.00445473]
[1762496319945,0.71719,3367.1,3367.0,0.38795473]
[1762496320344,0.48139,3367.1,3367.0,0.38795473]
[1762496323246,0.71719,3367.1,3367.0,0.38795473]
[1762496325952,0.71719,3367.1,3367.0,0.00445473]
[1762496326355,0.71719,3367.1,3367.0,0.15035473]
[1762496331654,0.71719,3367.1,3367.0,0.00445473]
[1762496336058,0.48139,3367.1,3367.0,0.38795473]
[1762496337756,0.48139,3367.1,3367.0,0.86935473]
[1762496341151,0.48139,3367.1,3367.0,0.38795473]
[1762496341356,0.71719,3367.1,3367.0,0.15035473]
[1762496341550,0.71719,3367.1,3367.0,0.00445473]
[1762496342454,0.48139,3367.1,3367.0,0.86935473]
[1762496343560,3.4436,3367.2,3367.1,0.48139]
[1762496343751,3.2078,3367.2,3367.1,0.71899]
[1762496343950,3.68919,3367.2,3367.1,0.2376]
[1762496344153,0.71719,3367.1,3367.0,0.15035473]
[1762496344357,0.71719,3367.1,3367.0,0.63175473]
[1762496345148,0.48139,3367.1,3367.0,0.86935473]
[1762496347363,0.72429,3367.1,3367.0,0.00445473]
[1762496348056,0.72429,3367.1,3367.0,0.14975473]
[1762496348964,0.72429,3367.1,3367.0,0.00445473]
[1762496349168,0.72429,3367.1,3367.0,0.14975473]
[1762496349663,0.72429,3367.1,3367.0,0.00445473]
[1762496350059,1.76547113,3367.1,3367.0,0.00445473]
[1762496350565,1.7654532,3367.1,3367.0,0.00445473]
[1762496351265,0.48139,3367.1,3367.0,0.37955473]
[1762496351464,11.9568,3367.2,3367.0,0.37955473]
[1762496351663,0.00339592,3367.4,3367.2,0.2298]
[1762496351867,0.48136,3367.3,3367.2,0.2298]
[1762496352259,0.48136,3367.3,3367.2,0.71117]
[1762496352868,0.72426,3367.3,3367.2,0.2298]
[1762496353463,0.72426,3367.3,3367.2,0.71117]
[1762496353970,0.48139,3367.1,3367.0,0.86095473]
[1762496355869,0.00339592,3367.4,3367.1,0.48138]
[1762496355870,0.72427,3367.2,3367.1,0.48138]
[1762496356056,0.00339592,3367.4,3367.1,0.71118]
[1762496356365,0.00339592,3367.4,3367.3,0.71116]
[1762496357065,0.48473592,3367.4,3367.3,0.71116]
[1762496357468,0.72763592,3367.4,3367.3,0.2298]
[1762496357769,0.00339592,3367.4,3367.3,0.71116]
[1762496361065,0.48473592,3367.4,3367.3,0.71116]
[1762496363970,0.72763592,3367.4,3367.3,0.2298]
[1762496365576,0.72763592,3367.4,3367.3,0.71116]
[1762496366072,0.72763592,3367.4,3367.3,0.48136]
[1762496366272,0.72429,3367.1,3367.0,0.00445473]
[1762496366970,0.72429,3367.1,3367.0,0.48585473]
[1762496367672,0.72429,3367.1,3367.0,0.63115473]
[1762496368164,0.48137,3367.3,3367.0,0.14975473]
[1762496368368,0.48137,3367.3,3367.2,0.71117]
[1762496370178,0.00339592,3367.4,3367.3,0.71116]
[1762496370469,0.24629592,3367.4,3367.3,0.71116]
[1762496371372,0.00339592,3367.4,3367.3,0.71116]
[1762496371672,0.48473592,3367.4,3367.3,0.71116]
[1762496372869,0.48136,3367.3,3367.2,0.48137]
[1762496373275,0.72426,3367.3,3367.2,0.48137]
[1762496374769,0.72839,3367.1,3367.0,0.63115473]
[1762496375976,0.72839,3367.1,3367.0,0.86795473]
[1762496381569,0.72839,3367.1,3367.0,0.38655473]
[1762496381770,0.72839,3367.1,3367.0,0.00445473]
[1762496382876,3.93619,3367.1,3367.0,0.00445473]
[1762496386881,0.72839,3367.1,3367.0,0.00445473]
[1762496387080,0.48139,3367.1,3367.0,0.39715473]
[1762496387282,0.72839,3367.1,3367.0,0.00445473]
[1762496388183,3.93619,3367.1,3367.0,0.00445473]
[1762496391782,0.247,3366.3,3366.2,2.12557454]
[1762496391981,0.247,3366.0,3365.9,3.2078]
[1762496392485,0.72854,3366.0,3365.9,3.68936]
[1762496392673,0.247,3366.0,3365.9,3.68936]
[1762496392878,0.247,3366.3,3366.0,0.1493]
[1762496393181,0.48152,3366.2,3366.1,0.72493]
[1762496393383,0.4815,3366.3,3366.2,0.72491]
[1762496393788,0.4815,3366.3,3366.2,0.2434]
[1762496394588,0.4815,3366.3,3366.2,0.72491]
[1762496395388,0.4815,3366.3,3366.2,0.2434]
[1762496396692,0.7285,3366.3,3366.2,0.2434]
[1762496398890,0.48159,3365.7,3365.6,0.00445473]
[1762496399084,0.48159,3365.7,3365.6,0.72945473]
[1762496400093,0.48156,3365.9,3365.8,0.72496]
[1762496400390,0.48601473,3366.0,3365.9,0.72496]
[1762496400986,0.00445473,3366.0,3365.9,0.72496]
[1762496401994,0.48599473,3366.0,3365.9,0.72496]
[1762496409590,0.00445473,3366.0,3365.9,0.72496]
[1762496410395,0.00445473,3366.0,3365.9,3.93276]
[1762496414597,0.00445473,3366.0,3365.9,6.05833454]
[1762496416696,0.48599473,3366.0,3365.9,3.4512]
[1762496417500,0.48599473,3366.0,3365.9,3.93276]
[1762496418203,0.00445473,3366.0,3365.9,6.05833454]
[1762496418402,0.00445473,3366.0,3365.9,3.93276]
[1762496419505,0.48599473,3366.0,3365.9,3.93276]
[1762496419800,0.48599473,3366.0,3365.9,6.06460044]
[1762496420304,0.00445473,3366.0,3365.9,6.06460044]
[1762496421107,0.00445473,3366.0,3365.9,3.93276]
[1762496422703,0.48599473,3366.0,3365.9,3.93276]
[1762496423204,0.48599473,3366.0,3365.9,6.06554114]
[1762496424108,0.48599473,3366.0,3365.9,5.58398114]
[1762496425610,0.48599473,3366.0,3365.9,6.06554114]
[1762496427208,0.00445473,3366.0,3365.9,2.85774114]
[1762496427409,0.00445473,3366.0,3365.9,0.72496]
[1762496428609,0.48599473,3366.0,3365.9,0.72496]
[1762496430311,0.00445473,3366.0,3365.9,0.72496]
[1762496443629,0.48599473,3366.0,3365.9,0.72496]
[1762496448737,0.00445473,3366.0,3365.9,0.72496]
[1762496449736,0.48599473,3366.0,3365.9,0.72496]
[1762496449938,0.48599473,3366.0,3365.9,9.47296]
[1762496450440,0.00445473,3366.0,3365.9,9.47296]
[1762496451438,0.48599473,3366.0,3365.9,9.47296]
[1762496451837,0.72909473,3366.0,3365.9,0.2434]
[1762496452141,0.72909473,3366.0,3365.9,0.48156]
[1762496452340,0.72909473,3366.0,3365.9,0.71666]
[1762496452743,0.00445473,3366.0,3365.9,0.71666]
[1762496452936,0.48599473,3366.0,3365.9,0.71666]
[1762496454043,0.72909473,3366.0,3365.9,0.48156]
[1762496455042,0.48159,3365.7,3365.6,2.66374255]
[1762496455236,0.72469,3365.7,3365.6,0.48605473]
[1762496455438,0.72469,3365.7,3365.6,0.72115473]
[1762496456344,0.48159,3365.7,3365.6,0.72115473]
[1762496457644,0.48159,3365.7,3365.6,0.23955473]
[1762496458948,0.72469,3365.7,3365.6,0.00445473]
[1762496460147,0.7247,3365.6,3365.5,0.00320646]
[1762496460348,0.2431,3365.1,3365.0,0.1493]
[1762496461643,0.72477,3365.1,3365.0,0.1493]
[1762496461846,0.72477,3365.1,3365.0,0.15189247]
[1762496462043,3.2078,3365.7,3365.5,0.147]
[1762496462542,0.4816,3365.6,3365.5,0.86371]
[1762496462739,0.4816,3365.7,3365.6,0.7167]
[1762496463150,0.24755473,3366.0,3365.5,0.147]
[1762496463350,0.72909473,3366.0,3365.9,0.2351]
[1762496463651,0.72909473,3366.0,3365.9,0.71666]
[1762496463851,0.00445473,3366.0,3365.9,0.71666]
[1762496464044,0.48599473,3366.0,3365.9,0.71666]
[1762496468447,0.71706,3365.9,3365.8,3.68937]
[1762496469349,0.71706,3365.9,3365.8,3.2078]
[1762496469555,0.7171,3365.6,3365.5,0.62861]
[1762496470046,0.7171,3365.6,3365.5,0.147]
[1762496470645,0.71713,3365.4,3365.3,3.2078]
[1762496470848,0.71713,3365.4,3365.3,3.93124]
[1762496471653,0.48163,3365.4,3365.3,3.93124]
[1762496472353,1.28572,3365.5,3365.4,0.72343]
[1762496472852,1.28571,3365.5,3365.4,0.72343]
[1762496473254,0.8041,3365.5,3365.4,0.72343]
[1762496473455,1.28571,3365.5,3365.4,0.72343]
[1762496474656,0.8041,3365.5,3365.4,0.72343]
[1762496479461,0.8041,3365.5,3365.4,2.85941747]
[1762496480269,0.8041,3365.5,3365.4,0.72343]
[1762496482266,0.8041,3365.5,3365.4,1.39143]
[1762496488071,0.8041,3365.5,3365.4,0.72343]
[1762496495478,0.8041,3365.5,3365.4,3.93123]
[1762496495874,1.52121,3365.5,3365.4,3.93123]
[1762496496074,1.52121,3365.5,3365.4,3.68943]
[1762496497393,1.52121,3365.5,3365.4,5.81940939]
[1762496497984,0.8041,3365.5,3365.4,6.06400939]
[1762496498286,0.8041,3365.5,3365.4,3.93403]
[1762496499190,1.28571,3365.5,3365.4,3.93403]
[1762496499579,0.8041,3365.5,3365.4,3.93403]
[1762496501588,0.8041,3365.5,3365.4,12.68003]
[1762496501989,0.8041,3365.5,3365.4,15.33931782]
[1762496508992,0.8041,3365.5,3365.4,12.68003]
[1762496510790,0.8041,3365.5,3365.4,12.67903]
[1762496510996,0.8041,3365.5,3365.4,6.59331782]
[1762496511197,0.8041,3365.5,3365.4,15.33831782]
[1762496511699,0.8041,3365.5,3365.4,6.59331782]
[1762496511898,0.8041,3365.5,3365.4,15.33831782]
[1762496513601,0.8041,3365.5,3365.4,6.59331782]
[1762496513802,0.8041,3365.5,3365.4,12.67903]
[1762496514001,1.0355,3365.5,3365.4,12.67903]
[1762496515502,1.0355,3365.5,3365.4,3.93403]
[1762496515701,0.8041,3365.5,3365.4,3.93403]
[1762496518197,1.63101,3365.5,3365.4,2.13096494]
[1762496518392,0.2314,3365.1,3365.0,5.82303741]
[1762496518997,0.2314,3365.1,3365.0,6.20293741]
[1762496519402,0.71307,3365.1,3365.0,6.20293741]
[1762496520907,3.29865473,3366.0,3365.2,0.48164]
[1762496521108,0.48165,3365.3,3365.2,0.71174]
[1762496521407,3.29865473,3366.0,3365.5,0.1498]
[1762496521610,0.4816,3365.6,3365.5,0.8615]
[1762496521905,3.29865473,3366.0,3365.5,0.8615]
[1762496521906,0.71299,3365.8,3365.7,0.48156]
[1762496522107,0.48159,3365.8,3365.7,0.71166]
[1762496522609,3.69380473,3366.0,3365.9,0.2301]
[1762496522811,3.92520473,3366.0,3365.9,0.71166]
[1762496524707,0.71740473,3366.0,3365.9,0.71166]
[1762496525309,0.71739473,3366.0,3365.9,0.71166]
[1762496528210,2.02809473,3366.0,3365.9,0.71166]
[1762496529517,1.79669473,3366.0,3365.9,0.71166]
[1762496533121,1.31515473,3366.0,3365.9,0.71166]
[1762496534218,1.31515473,3366.0,3365.9,9.45566]
[1762496536617,0.2364,3366.8,3366.7,0.48143]
[1762496536919,0.2364,3366.8,3365.8,3.2078]
[1762496536920,0.3879,3367.0,3366.9,0.48141]
[1762496537918,0.3879,3367.0,3366.9,0.72921]
[1762496538721,0.1515,3367.0,3366.9,0.72921]
[1762496539426,0.8693,3367.0,3366.9,0.48141]
[1762496540614,0.1515,3367.0,3366.8,0.48142]
[1762496540822,0.1515,3367.0,3366.9,0.48141]
[1762496541631,1.35752473,3367.3,3367.2,0.48137]
[1762496541925,1.59392473,3367.3,3367.2,0.48137]
[1762496545730,0.71779,3367.1,3367.0,3.68919]
[1762496550332,1.35751473,3367.3,3367.2,0.48137]
[1762496550632,1.59391473,3367.3,3367.2,0.48137]
[1762496551434,0.2364,3367.2,3366.6,11.95425473]
[1762496551636,0.63291,3367.0,3366.9,0.48139]
[1762496552228,0.86931,3367.0,3366.9,0.48139]
[1762496552532,0.3879,3367.0,3366.9,0.48139]
[1762496552733,0.3879,3367.0,3366.9,0.72919]
[1762496553635,0.48138,3367.2,3367.1,0.72919]
[1762496553837,0.48137,3367.2,3367.1,0.72919]
[1762496554131,1.35751473,3367.3,3367.2,0.48137]
[1762496554323,1.59391473,3367.3,3367.2,0.48137]
[1762496555727,1.35751473,3367.3,3367.2,0.72917]
[1762496559334,1.60041473,3367.3,3367.2,0.72917]
[1762496559536,0.72329,3367.2,3367.1,0.48139]
[1762496560331,0.2419,3367.2,3367.1,0.48139]
[1762496560539,0.87615473,3367.3,3367.2,0.71197]
[1762496564441,0.87615473,3367.3,3367.2,2.84031558]
[1762496564638,0.87615473,3367.3,3367.2,3.37125782]
[1762496564837,0.87615473,3367.3,3367.2,0.71197]
[1762496565544,0.87615473,3367.3,3367.2,3.37133324]
[1762496566842,0.0864,3368.0,3367.9,0.48127]
[1762496567143,0.3283,3368.0,3367.9,3.68907]
[1762496567842,0.33189821,3368.0,3367.9,3.69283251]
[1762496569745,0.81315821,3368.0,3367.9,3.69283251]
[1762496569949,0.33189821,3368.0,3367.9,3.69283251]
[1762496571048,0.81315821,3368.0,3367.9,3.69283251]
[1762496572147,0.33189821,3368.0,3367.9,3.69283251]
[1762496573449,0.08999821,3368.0,3367.9,3.69283251]
[1762496574041,0.62365473,3368.3,3368.2,0.48123]
[1762496574848,0.30833824,3368.3,3368.2,2.60819422]
[1762496575049,1.25e-06,3368.3,3368.2,0.48123]
[1762496575247,0.1462,3369.5,3368.9,0.48113]
[1762496575446,0.1462,3369.5,3368.9,3.68893]
[1762496575950,0.0044391,3369.3,3368.9,3.68893]
[1762496576140,0.15420174,3369.0,3368.9,3.68893]
[1762496582149,0.39610174,3369.0,3368.9,3.2078]
[1762496582356,0.2419,3368.7,3368.6,0.00445473]
[1762496582652,0.15420174,3369.0,3368.6,8.73745473]
[1762496582850,0.15420174,3369.0,3368.9,0.48113]
[1762496583152,0.87721174,3369.0,3368.9,0.48113]
[1762496583353,0.72304,3368.9,3368.8,0.48114]
[1762496587853,0.63532174,3369.0,3368.8,0.48113]
[1762496588056,0.2522,3368.9,3368.8,0.48113]
[1762496589263,0.15420174,3369.0,3368.6,0.00445473]
[1762496589560,0.2522,3368.7,3368.6,0.48561473]
[1762496590160,0.73336,3368.7,3368.6,0.48561473]
[1762496595362,0.2522,3368.7,3368.6,0.48561473]
[1762496595764,0.73334,3368.9,3368.8,0.48114]
[1762496597668,0.15420174,3369.0,3368.9,0.48113]
[1762496597865,0.15420174,3369.0,3368.9,3.68893]
[1762496599665,0.00270174,3369.0,3368.9,3.68893]
[1762496599868,0.3984,3370.0,3369.7,0.481]
[1762496600069,0.2522,3369.8,3369.7,3.2078]
[1762496600372,0.2522,3369.7,3369.6,0.48103]
[1762496600676,0.3999,3369.5,3369.3,0.48107]
[1762496600876,0.2522,3369.3,3369.2,3.2078]
[1762496603277,0.2522,3368.9,3368.8,2.11925871]
[1762496604177,0.2522,3368.8,3368.7,5.80820871]
[1762496604377,0.2522,3368.8,3368.7,3.68895]
[1762496604578,0.2522,3368.8,3368.7,5.80820871]
[1762496605274,0.1477,3369.0,3368.8,0.48113]
[1762496606082,0.1477,3369.0,3368.9,2.11925871]
[1762496607878,0.1477,3369.0,3368.9,8.73]
[1762496610279,0.1477,3369.0,3368.9,10.84925871]
[1762496610480,0.1477,3369.0,3368.9,11.33038871]
[1762496611479,0.1477,3369.0,3368.9,9.21113]
[1762496612881,0.1477,3369.0,3368.9,11.86983528]
[1762496613885,0.1477,3369.5,3369.4,0.48106]
[1762496614082,0.1477,3369.5,3369.4,3.68886]
[1762496620095,0.88094,3369.5,3369.4,3.2078]
[1762496620292,0.71897,3369.3,3369.2,0.48107]
[1762496620491,0.71898,3369.2,3369.1,0.4811]
[1762496620696,0.2379,3369.2,3369.1,0.4811]
[1762496620990,0.2379,3369.2,3369.1,2.6030715]
[1762496621191,0.719,3369.1,3369.0,5.3297715]
[1762496621387,0.2379,3369.1,3369.0,5.8108815]
[1762496621590,0.71896,3369.4,3369.3,0.48106]
[1762496621996,0.71898,3369.3,3369.2,0.48108]
[1762496622892,0.71896,3369.4,3369.3,0.48106]
[1762496623193,0.2379,3369.2,3369.1,0.48109]
[1762496623396,0.2379,3369.2,3369.0,3.2078]
[1762496623397,0.3856,3369.5,3369.4,0.48106]
[1762496623798,0.2379,3369.1,3369.0,3.2078]
[1762496624698,0.2379,3369.1,3369.0,3.68891]
[1762496625395,0.2379,3369.1,3369.0,5.8108815]
[1762496625796,0.719,3369.1,3369.0,3.68891]
[1762496627304,0.719,3369.1,3369.0,5.8108815]
[1762496627603,0.71896,3369.4,3369.3,0.48106]
[1762496627801,0.3856,3369.5,3369.4,0.48106]
[1762496627996,0.2379,3369.3,3369.2,0.48107]
[1762496629900,0.71897,3369.3,3369.2,0.48107]
[1762496630099,0.2379,3369.3,3369.2,0.48107]
[1762496631593,0.71897,3369.3,3369.2,0.48107]
[1762496633702,0.71898,3369.2,3369.1,2.6030615]
[1762496633902,0.1477,3369.5,3369.4,0.48105]
[1762496634103,0.3856,3369.5,3369.4,0.48105]
[1762496635007,0.2379,3369.3,3369.2,0.48107]
[1762496635307,0.2379,3369.3,3369.2,2.6030415]
[1762496635501,0.2379,3369.3,3369.2,0.48107]
[1762496635903,0.2379,3369.3,3369.2,2.6030415]
[1762496636606,0.71896,3369.3,3369.2,2.6030415]
[1762496637910,0.2379,3369.3,3369.2,2.6030415]
[1762496638107,0.86664,3369.5,3369.4,0.48105]
[1762496640708,0.2379,3369.3,3369.2,2.1219715]
[1762496641004,0.71898,3369.2,3369.1,2.1219715]
[1762496641209,0.71899,3369.1,3369.0,5.8108715]
[1762496642616,0.71899,3369.1,3369.0,2.6030715]
[1762496643614,0.71899,3369.1,3369.0,0.4811]
[1762496646816,0.72312,3368.9,3368.8,0.48114]
[1762496647712,0.72315,3368.7,3368.6,0.00445473]
[1762496653722,0.72315,3368.7,3368.6,0.48561473]
[1762496653913,0.48115,3368.7,3368.6,0.48561473]
[1762496654520,0.72315,3368.7,3368.6,0.48561473]
[1762496655715,0.72315,3368.7,3368.6,0.00445473]
[1762496656318,0.72315,3368.7,3368.6,0.48561473]
[1762496664223,0.72315,3368.7,3368.6,0.00445473]
[1762496664823,0.72315,3368.7,3368.6,0.48561473]
[1762496673533,0.72315,3368.7,3368.6,0.48562473]
[1762496675836,0.72315,3368.7,3368.6,0.00445473]
[1762496676334,0.72315,3368.7,3368.6,0.48561473]
[1762496676928,0.72315,3368.7,3368.6,0.00445473]
[1762496677128,0.72315,3368.7,3368.6,0.48561473]
[1762496680235,0.72315,3368.7,3368.6,0.00445473]
[1762496680627,0.72315,3368.7,3368.6,0.48561473]
[1762496680937,0.72315,3368.7,3368.6,0.00445473]
[1762496684541,0.72315,3368.7,3368.6,0.48561473]
[1762496686537,0.242,3368.7,3368.6,0.48561473]
[1762496686841,0.242,3368.7,3368.6,2.61531455]
[1762496687039,0.48115,3368.8,3368.7,0.48115]
[1762496687238,0.3954,3369.0,3368.9,0.48112]
[1762496688336,0.1485,3369.0,3368.9,0.48112]
[1762496691242,0.1485,3369.0,3368.9,2.60995752]
[1762496692345,0.87651,3369.0,3368.9,0.48112]
[1762496693043,0.72802,3368.9,3368.8,5.33663752]
[1762496693235,0.72805,3368.7,3368.6,0.00445473]
[1762496693541,0.72814,3368.1,3368.0,3.68905]
[1762496695345,0.2469,3368.1,3368.0,3.68905]
[1762496695746,0.72814,3368.1,3368.0,3.68905]
[1762496698043,0.00445473,3368.4,3368.3,0.48121]
[1762496698750,0.25135473,3368.4,3368.3,0.48121]
[1762496699249,0.00445473,3368.4,3368.3,0.48121]
[1762496700151,0.25135473,3368.4,3368.3,0.48121]
[1762496700451,0.72811,3368.3,3368.2,0.48121]
[1762496701447,0.2469,3368.1,3368.0,3.2078]
[1762496701748,0.2577832,3368.1,3368.0,3.2078]
[1762496702052,0.2577832,3368.1,3368.0,3.68905]
[1762496702850,0.7390232,3368.1,3368.0,3.2078]
[1762496703246,0.7390232,3368.1,3368.0,3.68905]
[1762496704040,0.7390232,3368.1,3368.0,3.2078]
[1762496704236,0.7390232,3368.1,3368.0,3.68905]
[1762496704944,0.2577832,3368.1,3368.0,3.68905]
[1762496705143,0.7390232,3368.1,3368.0,3.68905]
[1762496705343,0.7390232,3368.1,3368.0,3.2078]
[1762496705544,0.86895,3368.0,3367.9,0.00376251]
[1762496705846,0.8798332,3368.0,3367.9,0.00376251]
[1762496708652,0.72416,3367.2,3367.1,3.2078]
[1762496708856,0.72421,3366.9,3366.8,0.48142]
[1762496709151,0.72422,3366.8,3366.7,3.68923]
[1762496709352,0.48144,3366.7,3366.6,0.48145]
[1762496709562,0.48144,3366.7,3366.6,0.48372329]
[1762496709563,0.00231026,3366.7,3366.6,0.48372329]
[1762496709852,0.01319346,3366.7,3366.6,0.48372329]
[1762496710852,0.2428,3366.4,3366.3,0.00445473]
[1762496711147,0.48158,3365.7,3365.6,2.12638681]
[1762496711354,0.2428,3365.6,3365.5,3.2078]
[1762496711650,0.2428,3365.6,3365.1,3.2078]
[1762496711961,0.1408,3366.0,3364.9,0.48169]
[1762496711962,0.3836,3365.0,3364.9,0.48169]
[1762496712155,0.3836,3365.0,3364.9,0.48416713]
[1762496712457,0.3836,3365.0,3364.9,0.00247713]
[1762496712759,0.3944832,3365.0,3364.9,0.00247713]
[1762496714158,0.3944832,3365.0,3364.6,0.00445473]
[1762496714457,0.3944832,3365.0,3364.3,3.2078]
[1762496714458,0.2428,3364.4,3364.3,3.2078]
[1762496714962,0.3836,3364.0,3363.7,0.48186]
[1762496715162,0.48184,3363.9,3363.5,3.2078]
[1762496715359,0.48184,3363.9,3363.6,0.48187]
[1762496715661,0.00314919,3363.9,3363.7,0.48186]
[1762496715865,0.0108832,3363.8,3363.7,0.48186]
[1762496718465,0.0108832,3363.8,3363.7,8.48186]
[1762496718960,0.00314919,3363.9,3363.7,8.48186]
[1762496719564,0.1408,3364.0,3363.9,0.48184]
[1762496719757,0.00445473,3364.1,3363.9,3.68964]
[1762496719959,0.1408,3365.0,3364.4,0.48176]
[1762496720266,0.62248,3365.0,3364.4,0.48176]
[1762496720659,0.38637203,3364.5,3364.4,0.48176]
[1762496720867,0.14357203,3364.5,3364.4,0.48176]
[1762496723263,0.00445473,3364.8,3364.7,0.48172]
[1762496723565,0.00445473,3364.8,3364.7,3.68952]
[1762496724366,0.00746755,3364.8,3364.7,3.68952]
[1762496725668,0.25026755,3364.8,3364.7,0.48172]
[1762496725869,0.1408,3364.0,3363.9,3.68964]
[1762496726168,0.3836,3364.0,3363.9,3.68964]
[1762496727069,0.1408,3364.0,3363.9,3.68964]
[1762496732671,0.1408,3364.5,3364.4,0.48176]
[1762496737871,0.1411,3365.0,3364.3,3.2078]
[1762496738073,0.1411,3365.0,3364.9,3.68949]
[1762496738267,0.3698,3365.0,3364.9,3.68949]
[1762496738467,0.2287,3364.9,3364.8,0.4817]
[1762496739072,0.23194539,3364.9,3364.8,0.4817]
[1762496739365,0.00324539,3364.9,3364.8,0.4817]
[1762496740064,0.25664539,3364.9,3364.8,0.4817]
[1762496740270,0.00324539,3364.9,3364.8,0.4817]
[1762496742173,0.25664539,3364.9,3364.8,0.4817]
[1762496744270,0.00324539,3364.9,3364.8,0.4817]
[1762496748179,0.00324539,3364.9,3364.8,0.4809]
[1762496748981,0.23404539,3364.9,3364.8,0.4809]
[1762496749679,0.2308,3364.6,3364.5,3.2078]
[1762496749880,0.23404539,3364.9,3364.8,0.48171]
[1762496750879,0.00324539,3364.9,3364.8,0.48171]
[1762496760490,0.71573539,3364.9,3364.8,0.48171]
[1762496760687,0.23404539,3364.9,3364.8,0.48171]
[1762496761384,0.71573539,3364.9,3364.8,0.48171]
[1762496761585,0.2308,3364.7,3364.6,2.11279784]
[1762496761887,0.2308,3364.6,3364.5,5.32059784]
[1762496762086,0.71253,3364.6,3364.5,0.48175]
[1762496762281,0.1428,3364.5,3364.3,2.11279784]
[1762496762488,0.71256,3364.4,3364.3,2.59457784]
[1762496762790,0.71256,3364.4,3364.3,0.48178]
[1762496763387,0.71256,3364.4,3364.3,2.59457784]
[1762496765388,0.2308,3364.4,3364.3,2.59457784]
[1762496765589,0.1428,3364.5,3364.4,0.48176]
[1762496765793,0.00324539,3364.9,3364.8,0.48171]
[1762496766094,0.00324539,3364.9,3364.8,3.68951]
[1762496774401,0.00324539,3364.9,3364.8,0.48171]
[1762496774700,0.00324539,3364.9,3364.8,3.68951]
[1762496777105,0.1411,3365.0,3364.9,0.48169]
[1762496777402,0.1411,3365.0,3364.9,3.1444099]
[1762496778005,0.00445473,3365.2,3365.1,0.48166]
[1762496780709,0.1408,3365.5,3365.4,0.48162]
[1762496781006,0.1408,3365.5,3365.4,3.68942]
[1762496781918,0.3872,3365.5,3365.4,5.81738899]
[1762496782216,0.3872,3365.5,3365.4,3.68942]
[1762496782414,0.86881,3365.5,3365.4,3.68942]
[1762496782607,0.86881,3365.5,3365.4,3.2078]
[1762496784114,0.86881,3365.5,3365.4,3.68942]
[1762496785302,0.3872,3365.5,3365.4,3.68942]
[1762496785510,0.1408,3365.5,3365.4,3.68942]
[1762496786422,0.86881,3365.5,3365.4,3.68942]
[1762496787414,0.87155885,3365.5,3365.4,3.68942]
[1762496788010,0.87155885,3365.5,3365.4,3.2078]
[1762496788419,0.72802,3365.4,3365.3,0.48163]
[1762496788813,0.2464,3365.4,3365.3,0.48163]
[1762496789012,0.72802,3365.4,3365.3,0.48163]
[1762496789920,0.48162,3365.4,3365.3,0.48163]
[1762496790715,0.87155885,3365.5,3365.4,0.48162]
[1762496795625,0.14354885,3365.5,3365.4,2.60958899]
[1762496796513,0.14354885,3365.5,3365.4,0.48162]
[1762496800022,0.37584885,3365.5,3365.4,2.61348155]
[1762496800229,0.85745885,3365.5,3365.4,0.48162]
[1762496800429,0.85745885,3365.5,3365.4,2.61348155]
[1762496800630,0.85745885,3365.5,3365.4,0.48162]
[1762496800830,0.37584885,3365.5,3365.4,0.48162]
[1762496801326,0.62515885,3365.5,3365.4,0.48162]
[1762496801629,0.86105885,3365.5,3365.4,0.48162]
[1762496802424,0.37944885,3365.5,3365.4,0.48162]
[1762496803030,0.14354885,3365.5,3365.4,0.48162]
[1762496803431,0.86105885,3365.5,3365.4,0.48162]
[1762496803728,0.37944885,3365.5,3365.4,0.48162]
[1762496805334,0.37944885,3365.5,3365.4,2.61348155]
[1762496806436,0.14354885,3365.5,3365.4,2.61348155]
[1762496806636,0.86105885,3365.5,3365.4,2.61348155]
[1762496807032,0.37944885,3365.5,3365.4,2.61348155]
[1762496808536,0.86105885,3365.5,3365.4,2.61348155]
[1762496809338,0.14354885,3365.5,3365.4,2.61348155]
[1762496809538,0.14354885,3365.5,3365.4,0.48162]
[1762496809844,0.14354885,3365.5,3365.4,2.61533514]
[1762496810337,0.14354885,3365.5,3365.4,0.48162]
[1762496812734,0.62515885,3365.5,3365.4,0.48162]
[1762496812935,0.86105885,3365.5,3365.4,0.48162]
[1762496813840,0.37944885,3365.5,3365.4,0.48162]
[1762496815241,0.14354885,3365.5,3365.4,0.48162]
[1762496822741,0.14354885,3365.5,3365.4,3.14144266]
[1762496823345,0.14354885,3365.5,3365.4,0.48162]
[1762496823748,0.00445473,3365.7,3365.6,0.48159]
[1762496824646,3.2078,3365.9,3365.8,0.48156]
[1762496824847,3.21065392,3365.9,3365.8,9.23956]
[1762496831050,3.44655392,3365.9,3365.8,0.48156]
[1762496831853,3.44655392,3365.9,3365.8,2.61028724]
[1762496832555,3.44655392,3365.9,3365.8,0.48156]
[1762496833760,3.44655392,3365.9,3365.8,2.61050172]
[1762496835160,3.92810392,3365.9,3365.8,2.61050172]
[1762496835359,3.44655392,3365.9,3365.8,2.61050172]
[1762496836260,3.44655392,3365.9,3365.8,0.48156]
[1762496836560,3.44655392,3365.9,3365.8,2.61111631]
[1762496840252,3.44655392,3365.9,3365.8,2.12955631]
[1762496840459,0.247,3365.2,3365.1,3.2078]
[1762496840662,0.247,3365.2,3365.1,3.68946]
[1762496842065,0.72865,3365.2,3365.1,3.2078]
[1762496842260,0.72865,3365.2,3365.1,2.4477]
[1762496843063,0.72865,3365.2,3365.1,2.92936]
[1762496843568,0.72865,3365.2,3365.1,2.4477]
[1762496844761,0.72865,3365.2,3365.1,1.6876]
[1762496845161,5.9432,3365.3,3365.0,0.148]
[1762496845463,3.21065392,3365.9,3365.0,0.148]
[1762496845666,6.95587597,3365.8,3365.0,0.148]
[1762496845864,0.48166,3365.1,3365.0,0.148]
[1762496846565,0.48166,3365.1,3365.0,0.62968]
[1762496846870,0.48166,3365.1,3365.0,0.85888]
[1762496848069,0.48166,3365.1,3365.0,0.3772]
[1762496850968,0.48166,3365.1,3365.0,0.85888]
[1762496852473,0.48166,3365.1,3365.0,0.3772]